fUST/lending_fUST_20250701
["ID","MTS","AMOUNT","RATE_DAILY","PERIOD"]
[368737290,1751337047509,-1788.74,0.00020916,2]
[368737292,1751337047519,-2476.94,0.00020916,2]
[368737294,1751337047528,-2036.86,0.00020916,2]
[368737296,1751337047538,-935.68,0.00020916,2]
[368737298,1751337047547,-460.0,0.00020916,2]
[368737300,1751337047556,-460.0,0.00020917,2]
[368737302,1751337047566,-598.99553976,0.00020917,2]
[368737304,1751337047576,-543.21,0.00020917,2]
[368737306,1751337047586,-278.19767763,0.00020917,2]
[368737308,1751337047595,-1813.13,0.00020917,2]
[368737310,1751337047605,-460.0,0.00020917,2]
[368737312,1751337047615,-448.32146444,0.00020917,2]
[368737314,1751337047624,-460.0,0.00020917,2]
[368737316,1751337047633,-476.21,0.00020917,2]
[368737318,1751337047643,-595.55,0.00020917,2]
[368737320,1751337047653,-460.0,0.00020917,2]
[368737322,1751337047663,-419.44438141,0.00020917,2]
[368737324,1751337047673,-460.0,0.00020917,2]
[368737326,1751337047683,-460.0,0.00020918,2]
[368737328,1751337047693,-485.41,0.00020918,2]
[368737330,1751337047702,-460.0,0.00020918,2]
[368737332,1751337047712,-460.0,0.00020918,2]
[368737334,1751337047722,-900.2,0.00020918,2]
[368737337,1751337047731,-1592.0,0.00020918,2]
[368737339,1751337047741,-915.52,0.00020918,2]
[368737341,1751337047751,-2903.42,0.00020918,2]
[368737343,1751337047761,-662.92,0.00020918,2]
[368737345,1751337047772,-1450.0,0.00020918,2]
[368737347,1751337047782,-516.56,0.00020918,2]
[368737349,1751337047791,-460.0,0.00020918,2]
[368737351,1751337047801,-2945.16,0.00020918,2]
[368737353,1751337047810,-1087.5,0.00020918,2]
[368737355,1751337047820,-460.0,0.00020918,2]
[368737357,1751337047831,-1189.54,0.00020918,2]
[368737359,1751337047840,-460.0,0.0002092,2]
[368737361,1751337047849,-180.0,0.00020923,4]
[368737363,1751337047859,-3653.97220895,0.00020969,4]
[368737365,1751337047868,-947.08470196,0.00020987,2]
[368737367,1751337047877,-3000.0,0.00021,2]
[368737369,1751337047886,-576.0,0.00021,2]
[368737371,1751337047895,-10000.0,0.00021,5]
[368737373,1751337047904,-87151.97798978,0.00021,7]
[368737375,1751337047913,-162.18693915,0.00021,14]
[368737377,1751337047923,-160.364306,0.00021,2]
[368737379,1751337047933,-151.0,0.00021,2]
[368737381,1751337047944,-12571.40790328,0.00021,7]
[368737383,1751337047953,-167.642919,0.00021,2]
[368737385,1751337047963,-151.0,0.00021,2]
[368737387,1751337047973,-160.0,0.00021,7]
[368737389,1751337047983,-3000.0,0.0002101,2]
[368737391,1751337047993,-3000.0,0.0002102,2]
[368737393,1751337048002,-671.531,0.00021022,2]
[368737395,1751337048011,-2151.0,0.00021022,2]
[368737398,1751337048021,-420.262,0.00021022,2]
[368737399,1751337048031,-424.076,0.00021022,2]
[368737401,1751337048041,-940.0,0.00021022,2]
[368737404,1751337048052,-3000.0,0.0002103,2]
[368737406,1751337048062,-3000.0,0.0002104,2]
[368737408,1751337048072,-366.3581911,0.00021041,2]
[368737410,1751337048081,-3000.0,0.0002105,2]
[368737411,1751337048091,-3000.0,0.0002106,2]
[368737413,1751337048101,-3000.0,0.0002107,2]
[368737416,1751337048111,-3000.0,0.0002108,2]
[368737417,1751337048121,-3000.0,0.0002109,2]
[368737420,1751337048132,-500.0,0.00021095,15]
[368737422,1751337048141,-3000.0,0.000211,2]
[368737424,1751337048152,-160.0,0.000211,3]
[368737426,1751337048164,-3000.0,0.0002111,2]
[368737428,1751337048178,-3000.0,0.0002112,2]
[368737430,1751337048188,-3831.978616,0.0002113,2]
[368737431,1751337048199,-3653.97220895,0.00021176,4]
[368737433,1751337048209,-306.0,0.00021178,2]
[368737435,1751337048219,-156.1687484,0.00021178,2]
[368737437,1751337048229,-1297.73,0.00021189,2]
[368737440,1751337048241,-671.74,0.0002119,2]
[368737441,1751337048251,-1712.85,0.0002119,2]
[368737444,1751337048261,-1642.06,0.0002119,2]
[368737445,1751337048270,-1788.74,0.0002119,2]
[368737447,1751337048280,-2476.94,0.0002119,2]
[368737449,1751337048290,-2036.86,0.0002119,2]
[368737451,1751337048300,-935.68,0.0002119,2]
[368737453,1751337048311,-471.02219086,0.0002119,2]
[368737455,1751337048321,-460.0,0.00021191,2]
[368737458,1751337048330,-543.21,0.00021191,2]
[368737460,1751337048340,-1813.13,0.00021191,2]
[368737462,1751337048350,-460.0,0.00021191,2]
[368737464,1751337048360,-460.0,0.00021191,2]
[368737466,1751337048370,-476.21,0.00021191,2]
[368737468,1751337048379,-595.55,0.00021191,2]
[368737470,1751337048389,-460.0,0.00021191,2]
[368737472,1751337048398,-460.0,0.00021191,2]
[368737474,1751337048408,-460.0,0.00021192,2]
[368737476,1751337048417,-485.41,0.00021192,2]
[368737478,1751337048426,-460.0,0.00021192,2]
[368737480,1751337048436,-249.28078526,0.00021192,2]
[368737482,1751337048445,-900.2,0.00021192,2]
[368737484,1751337048455,-1592.0,0.00021192,2]
[368737486,1751337048464,-915.52,0.00021192,2]
[368737488,1751337048474,-2903.42,0.00021192,2]
[368737490,1751337048483,-662.92,0.00021192,2]
[368737492,1751337048492,-1450.0,0.00021192,2]
[368737494,1751337048503,-516.56,0.00021192,2]
[368737496,1751337048512,-485.12612632,0.00021192,2]
[368737498,1751337048522,-2945.16,0.00021192,2]
[368737500,1751337048532,-1087.5,0.00021192,2]
[368737502,1751337048541,-460.0,0.00021192,2]
[368737504,1751337048551,-1189.54,0.00021192,2]
[368737506,1751337048561,-460.0,0.00021194,2]
[368737508,1751337048571,-151.0,0.000212,4]
[368737510,1751337048581,-180.0,0.00021231,5]
[368737512,1751337048591,-151.0,0.0002138,2]
[368737514,1751337048600,-151.0,0.0002138,2]
[368737516,1751337048610,-151.0,0.0002138,2]
[368737518,1751337048621,-154.332682,0.0002138,2]
[368737520,1751337048630,-153.955672,0.0002138,2]
[368737522,1751337048639,-151.0,0.0002138,2]
[368737524,1751337048650,-151.0,0.0002138,2]
[368737527,1751337048660,-151.0,0.0002138,2]
[368737529,1751337048670,-161.436644,0.0002138,2]
[368737531,1751337048679,-3653.97220895,0.00021383,5]
[368737533,1751337048689,-151.0,0.00021383,2]
[368737535,1751337048699,-151.0,0.00021383,2]
[368737537,1751337048709,-249.381608,0.00021383,2]
[368737539,1751337048719,-306.276149,0.00021383,2]
[368737541,1751337048728,-306.276149,0.00021383,2]
[368737543,1751337048737,-151.0,0.00021383,2]
[368737545,1751337048747,-151.0,0.00021383,2]
[368737547,1751337048756,-151.0,0.00021383,2]
[368737549,1751337048765,-12500.0,0.00021426,2]
[368737551,1751337048775,-1297.73,0.00021463,2]
[368737553,1751337048784,-671.74,0.00021464,2]
[368737555,1751337048794,-1712.85,0.00021464,2]
[368737557,1751337048804,-1642.06,0.00021464,2]
[368737559,1751337048814,-1788.74,0.00021464,2]
[368737561,1751337048823,-2476.94,0.00021464,2]
[368737563,1751337048833,-2036.86,0.00021464,2]
[368737565,1751337048842,-935.68,0.00021464,2]
[368737567,1751337048852,-153.336237,0.00021465,2]
[368737569,1751337048861,-217.35960313,0.00021465,2]
[368737571,1751337048871,-543.21,0.00021465,2]
[368737573,1751337048881,-1813.13,0.00021465,2]
[368737575,1751337048890,-194.317061,0.00021465,2]
[368737577,1751337048901,-460.0,0.00021465,2]
[368737579,1751337048913,-151.0,0.00021465,2]
[368737581,1751337048923,-151.0,0.00021465,2]
[368737583,1751337048933,-151.0,0.00021465,2]
[368737585,1751337048943,-338.24421918,0.00021465,2]
[368737587,1751337048953,-476.21,0.00021465,2]
[368737589,1751337048964,-595.55,0.00021465,2]
[368737591,1751337048974,-460.0,0.00021465,2]
[368737593,1751337048984,-460.0,0.00021465,2]
[368737595,1751337048994,-152.0543,0.00021466,2]
[368737597,1751337049004,-151.487986,0.00021466,2]
[368737599,1751337049014,-151.0,0.00021466,2]
[368737601,1751337049025,-151.562938,0.00021466,2]
[368737603,1751337049035,-460.0,0.00021466,2]
[368737605,1751337049045,-485.41,0.00021466,2]
[368737607,1751337049056,-478.69220767,0.00021466,2]
[368737609,1751337049066,-900.2,0.00021466,2]
[368737611,1751337049076,-1592.0,0.00021466,2]
[368737613,1751337049086,-915.52,0.00021466,2]
[368737614,1751337049096,-2903.42,0.00021466,2]
[368737616,1751337049106,-662.92,0.00021466,2]
[368737618,1751337049116,-1450.0,0.00021466,2]
[368737620,1751337049126,-516.56,0.00021466,2]
[368737622,1751337049137,-2945.16,0.00021466,2]
[368737624,1751337049148,-1087.5,0.00021466,2]
[368737626,1751337049158,-460.0,0.00021466,2]
[368737628,1751337049172,-1189.54,0.00021466,2]
[368737630,1751337049182,-151.0,0.00021468,2]
[368737633,1751337049192,-460.0,0.00021468,2]
[368737634,1751337049203,-152.477671,0.00021468,2]
[368737636,1751337049213,-151.0,0.00021468,2]
[368737638,1751337049223,-154.597053,0.00021468,2]
[368737640,1751337049233,-151.0,0.00021468,2]
[368737642,1751337049245,-150.0,0.00021487,2]
[368737644,1751337049255,-180.0,0.00021538,5]
[368737646,1751337049264,-215.0738,0.00021541,2]
[368737648,1751337049275,-1239.400054,0.0002155,4]
[368737650,1751337049284,-3653.97220895,0.0002159,5]
[368737652,1751337049294,-587.0,0.00021629,2]
[368737654,1751337049304,-500.0,0.00021643,16]
[368737656,1751337049315,-4310.11655131,0.00021644,2]
[368737658,1751337049325,-158.984762,0.00021671,2]
[368737660,1751337049335,-1297.73,0.00021737,2]
[368737662,1751337049345,-671.74,0.00021738,2]
[368737664,1751337049354,-1712.85,0.00021738,2]
[368737666,1751337049364,-1642.06,0.00021738,2]
[368737668,1751337049374,-1788.74,0.00021738,2]
[368737670,1751337049384,-2476.94,0.00021738,2]
[368737672,1751337049394,-2036.86,0.00021738,2]
[368737674,1751337049404,-935.68,0.00021738,2]
[368737676,1751337049414,-543.21,0.00021739,2]
[368737678,1751337049424,-1813.13,0.00021739,2]
[368737697,1751337049581,-460.0,0.00021739,2]
[368737699,1751337049617,-476.21,0.00021739,2]
[368737701,1751337049627,-595.55,0.00021739,2]
[368737703,1751337049638,-460.0,0.00021739,2]
[368737705,1751337049647,-460.0,0.00021739,2]
[368737707,1751337049657,-460.0,0.0002174,2]
[368737709,1751337049667,-485.41,0.0002174,2]
[368737711,1751337049678,-900.2,0.0002174,2]
[368737713,1751337049687,-1592.0,0.0002174,2]
[368737715,1751337049697,-915.52,0.0002174,2]
[368737717,1751337049707,-2903.42,0.0002174,2]
[368737719,1751337049717,-662.92,0.0002174,2]
[368737721,1751337049726,-1450.0,0.0002174,2]
[368737723,1751337049736,-516.56,0.0002174,2]
[368737725,1751337049746,-2945.16,0.0002174,2]
[368737727,1751337049757,-1087.5,0.0002174,2]
[368737729,1751337049768,-460.0,0.0002174,2]
[368737731,1751337049777,-1189.54,0.0002174,2]
[368737733,1751337049787,-152.670947,0.00021741,2]
[368737735,1751337049797,-460.0,0.00021742,2]
[368737737,1751337049807,-498.34233224,0.0002177,2]
[368737739,1751337049816,-800.0,0.00021785,2]
[368737741,1751337049826,-3653.97220895,0.00021797,6]
[368737743,1751337049835,-800.0,0.00021844,2]
[368737745,1751337049845,-180.0,0.00021846,5]
[368737747,1751337049855,-4428.34997892,0.00021899,2]
[368737749,1751337049865,-500.0,0.00021917,2]
[368737751,1751337049874,-500.0,0.00021917,2]
[368737753,1751337049883,-500.0,0.00021917,2]
[368737755,1751337049893,-500.0,0.00021917,2]
[368737758,1751337049903,-500.0,0.00021917,2]
[368737759,1751337049913,-500.0,0.00021917,2]
[368737761,1751337049924,-500.0,0.00021917,2]
[368737763,1751337049934,-500.0,0.00021917,2]
[368737765,1751337049944,-500.0,0.00021917,2]
[368737767,1751337049954,-500.0,0.00021917,2]
[368737769,1751337049964,-500.0,0.00021917,2]
[368737771,1751337049973,-500.0,0.00021917,2]
[368737772,1751337049983,-500.0,0.00021917,2]
[368737774,1751337049992,-500.0,0.00021917,2]
[368737776,1751337050002,-460.0,0.00021917,2]
[368737778,1751337050011,-460.0,0.00021917,2]
[368737780,1751337050022,-460.0,0.00021917,2]
[368737781,1751337050032,-503.07669286,0.00021917,2]
[368737783,1751337050042,-501.23180368,0.00021917,2]
[368737785,1751337050052,-1317.9021564,0.00021918,7]
[368737787,1751337050062,-151.0,0.00021918,2]
[368737789,1751337050072,-151.693705,0.00021918,2]
[368737791,1751337050082,-252.442198,0.00021918,2]
[368737793,1751337050091,-252.442198,0.00021918,2]
[368737796,1751337050106,-252.442198,0.00021918,2]
[368737798,1751337050115,-252.442198,0.00021918,2]
[368737800,1751337050125,-481.89258307,0.00021918,7]
[368737801,1751337050135,-154.393057,0.00021918,7]
[368737803,1751337050144,-151.0,0.00021918,7]
[368737805,1751337050154,-800.0,0.00021936,2]
[368737807,1751337050165,-947.08470196,0.00021957,2]
[368737809,1751337050175,-500.0,0.00021973,2]
[368737811,1751337050185,-500.24394531,0.00021973,2]
[368737812,1751337050195,-500.62288182,0.00021973,2]
[368737813,1751337050205,-500.0,0.00021973,2]
[368737814,1751337050215,-500.0,0.00021973,2]
[368737815,1751337050224,-500.0,0.00021973,2]
[368737816,1751337050233,-508.61185846,0.00021973,2]
[368737817,1751337050245,-500.0,0.00021973,2]
[368737818,1751337050256,-502.01459024,0.00021973,2]
[368737819,1751337050265,-500.0,0.00021973,2]
[368737820,1751337050275,-500.0,0.00021973,2]
[368737821,1751337050284,-500.0,0.00021973,2]
[368737822,1751337050294,-311.99271156,0.00021973,2]
[368737823,1751337050303,-500.0,0.00021973,2]
[368737824,1751337050313,-602.50710945,0.00021973,2]
[368737825,1751337050323,-500.0,0.00021973,2]
[368737826,1751337050334,-500.0,0.00021973,2]
[368737827,1751337050344,-500.81283799,0.00021973,2]
[368737828,1751337050353,-500.58730303,0.00021973,2]
[368737829,1751337050362,-500.0,0.00021973,2]
[368737830,1751337050371,-500.0,0.00021973,2]
[368737831,1751337050381,-500.0,0.00021973,2]
[368737832,1751337050391,-500.0,0.00021973,2]
[368737833,1751337050400,-500.0,0.00021973,2]
[368737834,1751337050410,-503.73763114,0.00021973,2]
[368737835,1751337050419,-500.0,0.00021973,2]
[368737836,1751337050429,-500.41301451,0.00021973,2]
[368737837,1751337050438,-500.0,0.00021973,2]
[368737838,1751337050448,-500.0,0.00021973,2]
[368737839,1751337050458,-500.0,0.00021973,2]
[368737840,1751337050468,-500.0,0.00021973,2]
[368737841,1751337050478,-500.0,0.00021973,2]
[368737842,1751337050488,-500.0,0.00021973,2]
[368737843,1751337050499,-431.79010721,0.00021974,2]
[368737844,1751337050508,-800.0,0.00021981,2]
[368737845,1751337050518,-97504.99296058,0.0002199,15]
[368737849,1751337050633,-863.63041384,0.0002199,15]
[368737852,1751337050645,-847.21780698,0.0002199,15]
[368737871,1751337050831,-460.0,0.00018178,2]
[368737873,1751337050842,-223.56,0.0002046,2]
[368737875,1751337050852,-13741.03277836,0.0002199,15]
[368737916,1751337051288,1000.0,0.00017858,2]
[368737918,1751337051301,-460.0,0.00018175,2]
[368737920,1751337051311,-542.96,0.00018175,2]
[368737922,1751337051320,-460.0,0.00018176,2]
[368737924,1751337051330,-460.0,0.00018449,2]
[368737926,1751337051340,-460.0,0.0001845,2]
[368737928,1751337051349,-165.4,0.00018724,2]
[368737930,1751337051358,-151.0,0.000204,2]
[368737932,1751337051368,-151.0,0.00021,2]
[368737934,1751337051377,-178.827432,0.00021918,7]
[368737936,1751337051387,-8540.14691444,0.0002199,15]
[368737949,1751337051512,-460.0,0.00018176,2]
[368737951,1751337051522,-167.73,0.00018177,2]
[368737953,1751337051532,-460.0,0.0001845,2]
[368737955,1751337051543,-460.0,0.00018724,2]
[368737957,1751337051554,-271.69,0.00018998,2]
[368737959,1751337051563,-366.3581911,0.00021041,2]
[368737961,1751337051573,-30244.47753715,0.0002199,15]
[368737964,1751337051584,-25378.493,0.0002199,15]
[368737966,1751337051596,-16776.39597646,0.0002199,15]
[368737968,1751337051608,-13449.43631778,0.0002199,15]
[368737970,1751337051620,-1009.95,0.0002199,15]
[368737972,1751337051632,-1041.04,0.0002199,15]
[368737977,1751337051672,-39.27688674,0.0002199,15]
[368737980,1751337051696,-740.37785491,0.0002199,15]
[368737983,1751337051710,-25887.76705282,0.0002199,15]
[368738017,1751337052054,-283.37010409,0.0002199,15]
[368738619,1751337128161,445.54,0.00024658,120]
[368738620,1751337128757,-283.0,0.00018174,2]
[368738622,1751337163673,165.0,0.00016438,3]
[368738623,1751337186124,701.1,0.00018013,2]
[368738627,1751337529056,-165.23468313,0.00018077,2]
[368738628,1751337532607,-308.04315203,0.00018077,2]
[368738631,1751337536294,-0.26451582,0.00018077,2]
[368738633,1751337652068,195.69,0.00024939,60]
[368738636,1751337701837,314.496991,0.00013699,2]
[368738639,1751337796176,2100.0,0.00024939,60]
[368738640,1751337810279,-167.52953148,0.00018076,2]
[368738641,1751337812700,-176.14673602,0.00018076,2]
[368738642,1751337814392,-167.18271929,0.00018076,2]
[368738643,1751337817197,-21.87615808,0.00018076,2]
[368738644,1751337932093,-156.0,0.00018173,2]
[368738645,1751337932114,-300.0,0.00018173,2]
[368738646,1751337932135,-304.93643536,0.00018174,2]
[368738647,1751338041077,-300.0,0.00018173,2]
[368738648,1751338041099,-155.06356464,0.00018174,2]
[368738649,1751338041122,-460.0,0.00018174,2]
[368738650,1751338041144,-390.12149731,0.00018174,2]
[368738651,1751338091826,-226.32360183,0.00018075,2]
[368738652,1751338097354,-182.03477715,0.00018075,2]
[368738653,1751338100931,-180.01783285,0.00018075,2]
[368738654,1751338114825,169.0,0.00016438,3]
[368738655,1751338145434,1000.0,0.00017177,2]
[368738714,1751338232544,-300.0,0.00018173,2]
[368738716,1751338232554,-300.0,0.00018173,2]
[368738718,1751338232564,-8172.61890775,0.00018174,2]
[368738720,1751338232574,-69.87850269,0.00018174,2]
[368738722,1751338232587,-460.0,0.00018174,2]
[368738724,1751338232596,-460.0,0.00018174,2]
[368738726,1751338232605,-460.0,0.00018174,2]
[368738728,1751338232615,-460.0,0.00018174,2]
[368738729,1751338232626,-496.64,0.00018174,2]
[368738731,1751338232637,-460.0,0.00018174,2]
[368738732,1751338232646,-1141.9,0.00018174,2]
[368738734,1751338232658,-460.0,0.00018174,2]
[368738736,1751338232668,-460.0,0.00018174,2]
[368738738,1751338232678,-1157.34,0.00018174,2]
[368738740,1751338232688,-460.0,0.00018174,2]
[368738742,1751338232698,-460.0,0.00018174,2]
[368738744,1751338232708,-1412.11,0.00018174,2]
[368738746,1751338232718,-565.13244135,0.00018174,2]
[368738758,1751338232834,-676.93755865,0.00018174,2]
[368738760,1751338232843,-22.91844135,0.00018174,2]
[368739169,1751338238406,-190.11480902,0.00018173,2]
[368739170,1751338238416,-460.22409531,0.00018174,2]
[368739172,1751338238709,-1243.34746334,0.00018174,2]
[368739173,1751338238720,-460.0,0.00018174,2]
[368739174,1751338238729,-650.36,0.00018174,2]
[368739175,1751338238740,-788.01,0.00018174,2]
[368739176,1751338238750,-525.3,0.00018174,2]
[368739177,1751338238760,-199.74,0.00018174,2]
[368739178,1751338238770,-865.15,0.00018174,2]
[368739179,1751338238780,-460.0,0.00018174,2]
[368739180,1751338238790,-368.73,0.00018174,2]
[368739181,1751338238800,-460.0,0.00018174,2]
[368739182,1751338238811,-460.0,0.00018174,2]
[368739183,1751338238820,-423.39074498,0.00018174,2]
[368739184,1751338238830,-460.0,0.00018175,2]
[368739185,1751338238839,-460.0,0.00018175,2]
[368739186,1751338238849,-373.32204055,0.00018175,2]
[368739187,1751338238859,-460.0,0.00018175,2]
[368739188,1751338238868,-460.0,0.00018175,2]
[368739189,1751338238877,-460.0,0.00018175,2]
[368739190,1751338238887,-460.0,0.00018175,2]
[368739191,1751338238897,-460.0,0.00018175,2]
[368739192,1751338238915,-460.0,0.00018175,2]
[368739193,1751338238925,-358.84,0.00018175,2]
[368739194,1751338238935,-465.1390453,0.00018175,2]
[368739195,1751338238945,-465.06811486,0.00018175,2]
[368739196,1751338238954,-460.0,0.00018175,2]
[368739197,1751338238964,-465.10341813,0.00018175,2]
[368739198,1751338238974,-466.49657345,0.00018175,2]
[368739199,1751338238983,-460.0,0.00018175,2]
[368739200,1751338238993,-460.0,0.00018175,2]
[368739201,1751338239002,-460.0,0.00018175,2]
[368739202,1751338239012,-460.0,0.00018175,2]
[368739203,1751338239021,-460.0,0.00018175,2]
[368739204,1751338239031,-460.0,0.00018175,2]
[368739205,1751338239041,-460.0,0.00018175,2]
[368739206,1751338239051,-510.08,0.00018175,2]
[368739207,1751338239061,-460.0,0.00018175,2]
[368739208,1751338239070,-460.0,0.00018175,2]
[368739209,1751338239080,-460.0,0.00018175,2]
[368739210,1751338239089,-460.0,0.00018175,2]
[368739211,1751338239099,-460.0,0.00018175,2]
[368739213,1751338239108,-460.0,0.00018175,2]
[368739214,1751338239118,-460.0,0.00018175,2]
[368739215,1751338239130,-475.78634084,0.00018175,2]
[368739216,1751338239140,-460.0,0.00018175,2]
[368739217,1751338239150,-460.0,0.00018175,2]
[368739218,1751338239160,-460.0,0.00018175,2]
[368739219,1751338239169,-460.0,0.00018175,2]
[368739220,1751338239179,-460.0,0.00018175,2]
[368739221,1751338239189,-460.0,0.00018175,2]
[368739222,1751338239199,-460.0,0.00018175,2]
[368739223,1751338239209,-460.0,0.00018175,2]
[368739224,1751338239218,-460.0,0.00018175,2]
[368739225,1751338239228,-1265.46,0.00018175,2]
[368739226,1751338239238,-460.0,0.00018175,2]
[368739227,1751338239247,-460.0,0.00018175,2]
[368739228,1751338239257,-460.0,0.00018175,2]
[368739229,1751338239267,-460.0,0.00018175,2]
[368739230,1751338239277,-460.0,0.00018175,2]
[368739231,1751338239288,-460.0,0.00018175,2]
[368739232,1751338239298,-460.0,0.00018175,2]
[368739233,1751338239308,-460.0,0.00018175,2]
[368739234,1751338239318,-460.0,0.00018175,2]
[368739235,1751338239328,-460.0,0.00018175,2]
[368739236,1751338239338,-460.0,0.00018175,2]
[368739237,1751338239347,-460.0,0.00018175,2]
[368739238,1751338239357,-460.0,0.00018175,2]
[368739239,1751338239367,-460.0,0.00018175,2]
[368739240,1751338239376,-460.0,0.00018175,2]
[368739241,1751338239385,-460.0,0.00018175,2]
[368739242,1751338239395,-460.0,0.00018175,2]
[368739243,1751338239404,-460.0,0.00018175,2]
[368739244,1751338239414,-460.0,0.00018175,2]
[368739245,1751338239425,-460.0,0.00018175,2]
[368739246,1751338239434,-460.81800463,0.00018175,2]
[368739247,1751338239444,-460.0,0.00018175,2]
[368739248,1751338239453,-461.53075254,0.00018175,2]
[368739249,1751338239463,-460.0,0.00018175,2]
[368739250,1751338239472,-460.0,0.00018175,2]
[368739251,1751338239482,-460.0,0.00018175,2]
[368739252,1751338239493,-460.0,0.00018175,2]
[368739253,1751338239503,-593.76222642,0.00018176,2]
[368739254,1751338239514,-460.0,0.00018176,2]
[368739255,1751338239525,-506.18025254,0.00018176,2]
[368739256,1751338239536,-461.18339418,0.00018176,2]
[368739257,1751338239546,-460.0,0.00018176,2]
[368739258,1751338239556,-460.0,0.00018176,2]
[368739259,1751338239566,-460.0,0.00018176,2]
[368739260,1751338239577,-2013.51,0.00018176,2]
[368739261,1751338239589,-460.0,0.00018176,2]
[368739262,1751338239600,-622.04,0.00018176,2]
[368739263,1751338239609,-725.0,0.00018176,2]
[368739264,1751338239620,-656.41,0.00018176,2]
[368739265,1751338239631,-190.17575254,0.00018177,2]
[368739266,1751338239641,-461.75023107,0.00018177,2]
[368739267,1751338239651,-288.47870235,0.00018177,2]
[368739268,1751338239662,-460.0,0.00018177,2]
[368739270,1751338239673,-460.0,0.00018177,2]
[368739271,1751338239683,-460.0,0.00018177,2]
[368739272,1751338239692,-460.0,0.00018177,2]
[368739273,1751338239703,-460.0,0.00018177,2]
[368739274,1751338239712,-463.64948897,0.00018177,2]
[368739275,1751338239723,-460.0,0.00018177,2]
[368739276,1751338239732,-575.6,0.00018177,2]
[368739277,1751338239743,-460.0,0.00018177,2]
[368739278,1751338239753,-460.0,0.00018177,2]
[368739279,1751338239763,-460.0,0.00018177,2]
[368739280,1751338239773,-460.0,0.00018177,2]
[368739281,1751338239783,-460.0,0.00018177,2]
[368739282,1751338239793,-460.0,0.00018178,2]
[368739283,1751338239803,-460.0,0.00018178,2]
[368739284,1751338239813,-466.64337926,0.00018178,2]
[368739285,1751338239823,-460.0,0.00018178,2]
[368739286,1751338239833,-462.52217638,0.00018178,2]
[368739287,1751338239842,-460.0,0.00018178,2]
[368739288,1751338239852,-460.0,0.00018178,2]
[368739289,1751338239861,-460.0,0.00018178,2]
[368739290,1751338239872,-460.0,0.00018178,2]
[368739291,1751338239882,-460.0,0.00018178,2]
[368739292,1751338239892,-464.20199962,0.00018178,2]
[368739293,1751338239902,-460.0,0.00018178,2]
[368739294,1751338239911,-500.0,0.00018178,2]
[368739295,1751338239921,-460.0,0.00018178,2]
[368739296,1751338239931,-460.0,0.00018178,2]
[368739297,1751338239941,-460.0,0.00018178,2]
[368739298,1751338239951,-460.0,0.00018178,2]
[368739299,1751338239961,-460.0,0.00018178,2]
[368739300,1751338239970,-460.0,0.00018178,2]
[368739301,1751338239980,-460.0,0.00018178,2]
[368739302,1751338239990,-460.0,0.00018178,2]
[368739303,1751338239999,-460.0,0.00018178,2]
[368739304,1751338240008,-460.0,0.00018178,2]
[368739305,1751338240019,-460.0,0.00018178,2]
[368739306,1751338240028,-460.0,0.00018178,2]